bitfinex/quotes_ETHUSD_20241105
["timestamp","ask_amount","ask_price","bid_price","bid_amount"]
[1730829248136,1.3375,2458.6,2458.3,0.06649326]
[1730829248682,1.3375,2458.6,2458.4,0.06635592]
[1730829249063,1.3375,2458.6,2458.2,4.06791]
[1730829249285,1.3375,2458.6,2458.3,4.06782]
[1730829249471,1.3375,2458.6,2458.3,4.13431326]
[1730829250068,1.3375,2458.6,2458.4,4.06766]
[1730829250382,1.3375,2458.6,2458.4,4.13401592]
[1730829251238,1.3375,2458.6,2458.4,0.06635592]
[1730829251445,1.67692006,2458.9,2458.2,4.06793]
[1730829251683,1.67692006,2458.9,2458.8,4.06702]
[1730829252046,1.67692006,2458.9,2458.8,4.13285752]
[1730829253548,1.67692006,2458.9,2458.8,0.06583752]
[1730829253747,0.8729901,2459.0,2458.8,0.06583752]
[1730829254979,0.8729901,2459.0,2458.8,4.13283752]
[1730829255362,0.8729901,2459.0,2458.8,0.06583752]
[1730829255898,0.55,2458.9,2458.6,4.06733]
[1730829256791,0.55,2458.9,2458.5,4.0674]
[1730829257402,0.55,2458.9,2458.3,4.06773]
[1730829257698,4.61702,2458.9,2458.4,4.06767]
[1730829258259,0.55,2458.9,2458.3,4.06773]
[1730829258461,0.55,2458.9,2458.4,4.06768]
[1730829258706,0.55,2458.9,2458.5,4.06743]
[1730829259907,0.55,2458.9,2458.4,4.06768]
[1730829260567,0.55,2458.9,2458.4,8.13528]
[1730829260978,0.55,2458.9,2458.4,4.0676]
[1730829261179,4.61688,2458.9,2458.4,4.0676]
[1730829261383,4.61688,2458.9,2458.5,0.06622629]
[1730829261607,0.8108,2458.8,2458.5,0.06622629]
[1730829261790,0.55,2458.7,2458.5,0.06622629]
[1730829262214,0.55,2458.7,2458.4,4.06767]
[1730829262513,0.55,2458.7,2458.5,0.06622629]
[1730829264906,0.55,2458.7,2458.2,4.88781]
[1730829265068,0.55,2458.7,2458.6,0.06608896]
[1730829265412,0.55,2458.7,2458.3,4.0678]
[1730829265705,0.55,2458.7,2458.0,8.1365]
[1730829265706,4.61718,2458.7,2458.0,8.1365]
[1730829265909,0.55,2458.5,2458.1,4.13481569]
[1730829266203,0.55,2458.5,2458.3,4.06785]
[1730829266406,0.55,2458.5,2458.2,4.068]
[1730829266611,0.55,2458.5,2458.4,0.06636362]
[1730829266811,0.55,2458.5,2458.3,0.06650097]
[1730829267021,0.55,2458.5,2458.4,0.06636362]
[1730829267722,0.55,2458.5,2458.2,4.068]
[1730829267924,0.55,2458.5,2458.3,0.06650097]
[1730829268087,0.55,2458.5,2458.1,4.06809]
[1730829268282,0.55,2458.5,2458.2,0.06663832]
[1730829270024,0.55,2458.5,2458.2,4.13464832]
[1730829274601,0.55,2458.5,2458.3,4.06783]
[1730829275017,0.55,2458.5,2458.4,0.06654112]
[1730829275934,0.7573,2458.6,2458.4,4.13421112]
[1730829276498,0.8044,2458.8,2458.5,4.06751]
[1730829276703,0.8044,2458.8,2458.6,0.06626646]
[1730829286069,0.8044,2458.8,2458.5,3.14225704]
[1730829286251,1.3544,2458.8,2458.7,0.06394342]
[1730829286455,1.3544,2458.8,2458.6,0.06408073]
[1730829286673,1.3544,2458.8,2458.7,0.06394342]
[1730829287048,2.28230544,2458.8,2458.4,4.06768]
[1730829287369,1.68620766,2458.9,2458.8,4.06702]
[1730829287667,0.0618901,2459.0,2458.9,4.06685]
[1730829288027,0.0618901,2459.0,2458.9,4.1304841]
[1730829288746,0.0618901,2459.0,2458.9,4.9146841]
[1730829289245,0.0618901,2459.0,2458.9,0.8478341]
[1730829289592,0.0618901,2459.0,2458.9,0.0636341]
[1730829289758,0.0618901,2459.0,2458.9,4.1304841]
[1730829290484,0.0618901,2459.0,2458.9,0.0636341]
[1730829290698,0.55701611,2459.0,2458.9,0.0636341]
[1730829290855,0.55701611,2459.0,2458.6,4.06725]
[1730829291188,0.0618901,2459.0,2458.7,4.06715]
[1730829291382,0.0618901,2459.0,2458.8,0.06348586]
[1730829291758,0.55,2458.9,2458.8,0.06348586]
[1730829291971,0.55,2458.9,2458.6,4.06725]
[1730829292180,0.55,2458.9,2458.7,0.06364245]
[1730829292862,1.67544478,2458.9,2458.7,0.06364245]
[1730829293190,0.7914,2458.8,2458.7,4.06718]
[1730829293688,0.55,2458.9,2458.7,0.06364245]
[1730829295063,0.55,2458.9,2458.5,4.06745]
[1730829295570,0.55,2458.9,2458.6,0.06377976]
[1730829295756,0.55,2458.9,2458.6,4.13111976]
[1730829296373,0.55,2458.9,2458.6,0.06377976]
[1730829296577,0.55,2458.9,2458.4,4.06758]
[1730829296775,0.55,2458.9,2458.5,0.06391708]
[1730829297050,0.55,2458.9,2458.5,0.1452577]
[1730829297281,0.0618901,2459.0,2458.8,4.06702]
[1730829297562,0.0618901,2459.0,2458.9,4.13021786]
[1730829299374,0.0618901,2459.0,2458.9,0.06336786]
[1730829300503,0.0618901,2459.0,2458.9,5.79939769]
[1730829301482,0.0618901,2459.0,2458.9,4.13021786]
[1730829305973,0.0618901,2459.0,2458.9,5.79939769]
[1730829306503,0.0618901,2459.0,2458.9,6.58519769]
[1730829307266,0.0618901,2459.0,2458.9,4.91601786]
[1730829307668,0.0618901,2459.0,2458.9,6.58519769]
[1730829311026,0.0618901,2459.0,2458.9,4.91601786]
[1730829311814,0.0618901,2459.0,2458.9,0.06336786]
[1730829312323,0.0618901,2459.0,2458.9,0.06329841]
[1730829312730,0.0618901,2459.0,2458.9,0.06330227]
[1730829312911,0.0618901,2459.0,2458.7,4.06718]
[1730829313112,0.0618901,2459.0,2458.8,0.06343956]
[1730829313928,0.55338811,2459.0,2458.6,4.06723]
[1730829314132,0.7826,2458.8,2458.7,0.06362701]
[1730829314367,0.7826,2458.8,2458.4,4.06756]
[1730829314767,0.7826,2458.8,2458.5,0.06390165]
[1730829314968,0.55,2458.7,2458.5,0.06390165]
[1730829315171,5.157227,2458.7,2458.2,8.13582]
[1730829315373,5.157227,2458.7,2458.3,0.06417633]
[1730829315534,5.157227,2458.7,2458.2,8.13582]
[1730829315869,5.157227,2458.7,2458.3,0.06417633]
[1730829316090,4.61753,2458.5,2458.3,0.06417633]
[1730829316393,4.61753,2458.5,2458.4,0.06403898]
[1730829316553,0.55,2458.5,2458.0,4.06823]
[1730829316753,0.55,2458.5,2458.1,0.14580295]
[1730829317360,0.55,2458.5,2458.1,0.06445105]
[1730829317883,0.55,2458.5,2458.2,4.06788]
[1730829318082,1.5492107,2458.5,2458.1,0.06445105]
[1730829318378,1.5492107,2458.5,2458.2,0.06431368]
[1730829318578,1.5492107,2458.5,2458.0,5.73740983]
[1730829318790,0.752,2458.9,2458.6,4.06719]
[1730829318950,0.0618901,2459.0,2458.7,4.13072701]
[1730829319978,0.0618901,2459.0,2458.9,4.06685]
[1730829320180,0.0618901,2459.0,2458.9,4.21183811]
[1730829320370,0.0618901,2459.0,2458.9,4.13051112]
[1730829321086,0.0618901,2459.0,2458.9,4.93061112]
[1730829328703,0.0618901,2459.0,2458.9,4.13051112]
[1730829330258,0.0618901,2459.0,2458.9,0.06366112]
[1730829330464,0.0618901,2459.0,2458.9,4.13051112]
[1730829330707,0.0618901,2459.0,2458.9,0.06366112]
[1730829332792,0.55622611,2459.0,2458.7,4.06716]
[1730829333113,0.55622611,2459.0,2458.6,4.06725]
[1730829333114,0.55622611,2459.0,2458.8,4.13053058]
[1730829334011,0.0618901,2459.0,2458.8,4.13053058]
[1730829334729,0.0618901,2459.0,2458.8,0.06352058]
[1730829335087,0.0618901,2459.0,2458.6,4.06725]
[1730829335423,0.55,2458.9,2458.6,4.06725]
[1730829336226,0.55,2458.9,2458.7,0.06368875]
[1730829336520,0.7996,2458.8,2458.7,0.06368875]
[1730829336731,1.3496,2458.8,2458.7,0.06368875]
[1730829337020,0.55,2458.7,2458.4,4.06757]
[1730829337427,0.55,2458.7,2458.3,4.06781]
[1730829338098,4.61723,2458.7,2458.2,4.06799]
[1730829338303,0.7617,2458.4,2458.1,4.06805]
[1730829339747,0.7617,2458.4,2458.1,8.13613]
[1730829339943,0.7617,2458.4,2458.2,4.14935215]
[1730829340145,0.7617,2458.4,2458.2,4.068]
[1730829340445,0.7617,2458.4,2458.1,4.06805]
[1730829342038,0.7617,2458.4,2458.1,8.13612]
[1730829342252,0.7617,2458.4,2458.1,4.06805]
[1730829342992,0.7617,2458.4,2457.9,4.06841]
[1730829342993,5.8688787,2458.4,2457.9,4.06841]
[1730829343291,0.55,2458.3,2457.9,4.06841]
[1730829343454,0.55,2458.3,2457.9,8.13683]
[1730829343655,0.55,2458.3,2457.9,4.06841]
[1730829343992,0.55,2458.3,2457.9,4.14976964]
[1730829344678,0.55,2458.3,2457.9,8.21818964]
[1730829344877,5.25973787,2458.3,2457.9,0.08135964]
[1730829345214,0.8293,2458.0,2457.7,4.06873]
[1730829345505,4.06876,2457.8,2457.3,4.92170267]
[1730829345655,0.55,2457.6,2457.1,4.85334]
[1730829345864,0.55,2457.6,2457.1,8.92308]
[1730829346094,0.55,2457.6,2457.2,4.06966]
[1730829346448,1.50042,2457.6,2456.9,4.84827]
[1730829346654,1.3755,2457.4,2456.8,4.07029]
[1730829346854,0.8255,2457.1,2456.7,4.07044]
[1730829347374,0.8255,2457.1,2456.6,4.07064]
[1730829347375,0.55,2457.0,2456.6,4.07055]
[1730829348602,0.55,2457.0,2456.3,0.812]
[1730829348899,0.8108,2456.7,2456.2,4.07122]
[1730829349203,1.093119,2456.6,2456.0,4.07158]
[1730829349554,1.093119,2456.6,2456.0,4.15300391]
[1730829350262,1.093119,2456.6,2456.0,4.15296391]
[1730829350464,1.093119,2456.6,2456.2,4.0713]
[1730829350678,0.55,2456.6,2456.2,4.0713]
[1730829351296,0.55,2456.6,2456.3,0.06429289]
[1730829351657,0.55,2456.6,2456.0,8.14308]
[1730829351658,0.55,2456.6,2456.0,4.07154]
[1730829351913,0.55,2456.6,2456.1,0.06456806]
[1730829352074,0.55,2456.6,2456.2,4.07118]
[1730829352391,0.8108,2456.7,2456.3,4.07106]
[1730829352589,0.8108,2456.7,2456.3,4.13535289]
[1730829353287,0.8108,2456.7,2456.4,4.07099]
[1730829353547,0.7856,2457.1,2456.6,4.07066]
[1730829353665,0.7856,2457.1,2456.7,4.07046]
[1730829353877,0.7856,2457.1,2456.8,0.06360515]
[1730829354887,0.55,2457.0,2456.8,0.06360515]
[1730829355520,4.62016,2456.9,2456.8,0.06360515]
[1730829355793,1.3119,2456.9,2456.5,4.0708]
[1730829355990,1.3119,2456.9,2456.5,4.07072]
[1730829356176,1.3119,2456.9,2456.6,0.06388021]
[1730829356569,0.7619,2456.9,2456.6,0.06388021]
[1730829356981,0.7619,2456.9,2456.6,4.13453021]
[1730829357180,0.7619,2456.9,2456.7,4.0704]
[1730829357361,0.7619,2456.9,2456.8,0.06360515]
[1730829359103,0.7619,2456.9,2456.5,8.1415]
[1730829359392,0.7619,2456.9,2456.8,0.06360515]
[1730829359593,0.7619,2456.9,2456.6,4.07066]
[1730829359778,0.7619,2456.9,2456.8,0.06360515]
[1730829360161,0.7619,2456.9,2456.6,4.07066]
[1730829360509,0.7619,2456.9,2456.7,0.06374268]
[1730829361294,4.83209,2456.9,2456.7,0.06374268]
[1730829361498,0.483209,2456.8,2456.2,3.0]
[1730829361710,0.7619,2456.9,2456.8,0.0638052]
[1730829361863,0.7619,2456.9,2456.4,4.15240026]
[1730829361864,0.55,2456.8,2456.2,4.07123]
[1730829362071,0.7557,2456.6,2456.3,0.06449678]
[1730829362273,4.62084,2456.5,2456.0,4.07156]
[1730829362577,5.565546,2456.5,2456.0,4.07156]
[1730829362776,5.565546,2456.5,2456.1,0.0647758]
[1730829363013,9.636496,2456.5,2456.1,0.0647758]
[1730829363312,4.071,2456.4,2456.1,0.0647758]
[1730829363515,5.565546,2456.5,2456.1,0.0647758]
[1730829363814,5.565546,2456.5,2456.2,0.06463821]
[1730829364013,5.565546,2456.5,2455.9,4.07179]
[1730829364225,9.636466,2456.5,2456.0,0.06491341]
[1730829364527,5.565546,2456.5,2456.0,0.06491341]
[1730829365084,0.7632,2456.2,2456.0,0.06491341]
[1730829365311,4.83462,2456.2,2456.0,0.06491341]
[1730829365487,4.83462,2456.2,2455.6,4.07221]
[1730829365685,4.83462,2456.2,2456.1,0.0647758]
[1730829365686,1.3132,2456.2,2456.1,0.0647758]
[1730829365887,1.3132,2456.2,2455.8,4.07189]
[1730829366415,1.3132,2456.2,2455.9,0.06505102]
[1730829367209,1.3132,2456.2,2455.9,4.13684102]
[1730829367365,0.7632,2456.2,2455.9,4.13678102]
[1730829367573,0.7632,2456.2,2456.0,4.07164]
[1730829367921,0.7632,2456.2,2456.1,0.0647758]
[1730829368268,0.8245,2456.4,2456.1,4.1362458]
[1730829368470,0.8245,2456.7,2456.3,4.07115]
[1730829368684,0.8245,2456.7,2456.4,4.13523306]
[1730829369316,0.8245,2456.7,2456.4,0.06436306]
[1730829369529,0.8245,2456.7,2456.4,4.13535306]
[1730829369725,0.8245,2456.7,2456.5,4.07073]
[1730829369928,4.06985,2457.1,2456.5,4.07073]
[1730829369929,0.7845,2457.0,2456.5,4.07073]
[1730829370236,0.7845,2457.0,2456.3,0.8296]
[1730829370237,0.7845,2457.0,2456.6,0.06408796]
[1730829370398,0.8088,2457.3,2456.8,4.07018]
[1730829370581,1.296625,2457.3,2456.9,4.13383539]
[1730829371096,0.8088,2457.3,2457.0,4.06994]
[1730829371421,0.8088,2457.3,2457.1,0.06340039]
[1730829372520,0.7546,2457.5,2457.1,0.06340039]
[1730829372829,0.7546,2457.5,2457.1,4.13320039]
[1730829375022,0.7546,2457.5,2457.2,4.06966]
[1730829375354,0.7546,2457.5,2457.3,0.06314468]
[1730829375507,4.06934,2457.4,2457.3,0.06314468]
[1730829375985,4.06934,2457.4,2456.8,0.7578]
[1730829376206,0.55,2457.2,2456.9,0.06369462]
[1730829376435,0.55,2456.9,2456.3,4.07105]
[1730829376617,0.517,2456.8,2456.4,0.0643823]
[1730829376834,0.55,2456.9,2456.4,0.0643823]
[1730829377008,0.55,2457.0,2456.4,0.0643823]
[1730829377354,8.94464,2456.6,2456.4,0.0643823]
[1730829377553,0.8032,2456.6,2456.4,0.0643823]
[1730829377735,0.8032,2456.6,2456.2,4.07132]
[1730829377903,1.3532,2456.6,2456.5,0.06424474]
[1730829378248,1.895562,2456.6,2456.1,4.07138]
[1730829378554,1.895562,2456.6,2456.2,0.06465745]
[1730829379702,5.966242,2456.6,2456.2,0.06465745]
[1730829379908,1.895562,2456.6,2456.2,0.06465745]
[1730829380106,0.55,2456.3,2456.2,0.06465745]
[1730829380435,4.07133,2456.2,2455.6,4.96433161]
[1730829380610,0.55,2456.1,2455.7,0.06534551]
[1730829382234,0.55,2456.1,2455.7,4.13749551]
[1730829382928,0.55,2456.3,2455.7,4.13738551]
[1730829383134,0.55,2456.3,2455.7,8.29083527]
[1730829383342,0.55,2456.3,2455.7,8.20940551]
[1730829383547,0.55,2456.3,2455.8,4.07196]
[1730829384043,0.55,2456.3,2455.9,0.06551667]
[1730829384348,5.083289,2456.3,2455.9,0.06551667]
[1730829384647,5.083289,2456.3,2455.7,4.07202]
[1730829384843,5.083289,2456.3,2455.8,0.065662]
[1730829385053,5.083289,2456.3,2455.7,4.07202]
[1730829385213,5.083289,2456.3,2455.8,0.065662]
[1730829385408,0.65426598,2456.2,2455.7,4.07202]
[1730829385717,0.7824,2456.1,2455.8,0.065662]
[1730829386117,0.7824,2456.1,2455.7,4.07202]
[1730829386330,0.7824,2456.1,2455.9,0.06550127]
[1730829386610,0.7824,2456.1,2456.0,0.06536366]
[1730829386821,0.7824,2456.1,2455.7,4.07202]
[1730829387025,0.7824,2456.1,2455.8,0.0656389]
[1730829387549,0.7824,2456.1,2455.7,4.07202]
[1730829387707,1.4344105,2456.1,2455.9,0.06550127]
[1730829387910,1.4344105,2456.1,2455.8,0.0656389]
[1730829388111,6.0559005,2456.1,2456.0,0.06536366]
[1730829388341,4.07166,2456.0,2455.9,0.06553207]
[1730829388552,4.07166,2456.0,2455.5,8.14477]
[1730829388844,1.4344105,2456.1,2455.5,8.14477]
[1730829388845,5.5059105,2456.1,2455.5,4.07238]
[1730829389428,4.07166,2456.0,2455.5,4.07238]
[1730829389724,1.4344105,2456.1,2455.6,4.0723]
[1730829390656,0.55,2456.3,2456.0,4.07166]
[1730829391211,0.55,2456.3,2455.9,0.8251]
[1730829391409,0.55,2456.3,2455.9,4.89691]
[1730829392557,0.8152,2456.7,2456.0,4.07158]
[1730829392856,5.374372,2456.7,2456.1,4.07141]
[1730829393612,4.071,2456.4,2455.9,0.8251]
[1730829393812,0.55,2456.5,2456.0,4.15299468]
[1730829394652,0.55,2456.5,2456.0,0.08142468]
[1730829394981,4.533105,2456.4,2455.9,0.90652469]
[1730829395749,0.55,2456.5,2456.1,4.07139]
[1730829396387,0.55,2456.5,2456.2,0.06518475]
[1730829397252,4.07075,2456.6,2456.2,0.06518475]
[1730829398886,4.07085,2456.5,2456.2,0.06518475]
[1730829399055,4.07085,2456.5,2455.9,8.96851]
[1730829399256,5.0153862,2456.5,2456.0,0.06545994]
[1730829400051,0.9445362,2456.5,2456.0,4.13710994]
[1730829400392,4.621,2456.4,2456.0,0.06545994]
[1730829400547,0.7772,2456.2,2456.0,0.06545994]
[1730829400956,0.7772,2456.2,2455.8,3.0]
[1730829401185,0.7772,2456.2,2456.1,0.06532234]
[1730829401387,0.7772,2456.2,2455.8,4.07185]
[1730829401554,0.7772,2456.2,2456.1,0.06532234]
[1730829401748,0.7772,2456.2,2455.8,4.07185]
[1730829401954,0.7772,2456.2,2456.1,0.06532234]
[1730829402191,4.84856,2456.2,2455.7,4.86905]
[1730829402395,4.84856,2456.2,2456.1,0.06532234]
[1730829402396,0.7772,2456.2,2456.1,0.06532234]
[1730829402624,1.3533,2456.4,2455.7,4.86905]
[1730829402821,1.3533,2456.4,2456.1,0.06532234]
[1730829403104,4.62116,2456.3,2456.2,0.06518475]
[1730829403415,5.570677,2456.3,2455.8,4.07197]
[1730829403565,5.570677,2456.3,2456.2,0.06518475]
[1730829403763,4.07135,2456.2,2455.7,4.86905]
[1730829404007,4.07135,2456.2,2455.7,8.94112]
[1730829405399,0.55,2456.2,2455.9,4.07181]
[1730829405612,0.55,2456.2,2455.7,4.86904]
[1730829405789,4.62117,2456.3,2455.8,4.07199]
[1730829407075,0.55,2456.3,2455.8,4.07199]
[1730829408005,4.62117,2456.3,2455.8,4.07199]
[1730829409789,0.55,2456.3,2455.8,4.07199]
[1730829409993,4.62117,2456.3,2455.8,4.07199]
[1730829411119,0.55,2456.3,2455.8,4.07199]
[1730829411301,0.55,2456.3,2455.9,4.13737902]
[1730829412581,5.1636,2456.3,2455.9,4.13737902]
[1730829412780,1.09244,2456.3,2455.9,4.13737902]
[1730829413223,1.09244,2456.3,2455.9,0.06555902]
[1730829413378,5.1636,2456.3,2455.9,0.06555902]
[1730829413698,1.09244,2456.3,2456.0,0.06542141]
[1730829416696,5.1636,2456.3,2456.0,0.06542141]
[1730829417984,1.09244,2456.3,2456.0,0.06542141]
[1730829419314,4.07134,2456.2,2456.0,0.06542141]
[1730829419795,4.07134,2456.2,2455.7,4.86903]
[1730829419991,4.07134,2456.2,2456.1,0.06521838]
[1730829420181,5.07516,2456.2,2455.7,4.86903]
[1730829420387,4.07134,2456.2,2456.1,0.06521838]
[1730829420588,4.07134,2456.2,2455.7,4.86903]
[1730829420788,4.07134,2456.2,2456.1,0.06521838]
[1730829421297,4.07134,2456.2,2455.7,8.9411]
[1730829421501,4.07134,2456.2,2455.8,0.06563122]
[1730829421698,4.07134,2456.2,2455.7,8.9411]
[1730829421879,4.07134,2456.2,2455.8,0.06563122]
[1730829422084,4.07134,2456.2,2455.7,8.9411]
[1730829422311,4.07134,2456.2,2455.8,0.06563122]
[1730829422491,4.07134,2456.2,2455.7,4.86903]
[1730829422714,4.07134,2456.2,2455.8,0.06563122]
[1730829422909,5.45368149,2456.2,2455.7,4.86903]
[1730829423119,4.07134,2456.2,2455.8,0.06563122]
[1730829423325,4.07134,2456.2,2455.7,8.9411]
[1730829423623,4.07134,2456.2,2455.8,0.06563122]
[1730829423810,8.14277,2456.2,2455.8,0.06563122]
[1730829424011,8.14283,2456.2,2455.7,4.86903]
[1730829424225,8.14283,2456.2,2455.9,0.06549359]
[1730829424514,7.13332703,2456.2,2456.0,0.06535598]
[1730829424833,11.20473703,2456.2,2455.7,4.86903]
[1730829424992,5.75069097,2456.2,2456.1,0.06521838]
[1730829425331,0.7895,2456.1,2455.7,4.07203]
[1730829425532,4.86099,2456.1,2455.5,4.84987]
[1730829425689,4.86099,2456.1,2455.5,8.92223]
[1730829425883,0.7895,2456.1,2455.5,4.84986]
[1730829426082,4.86111,2456.1,2455.5,8.92223]
[1730829426319,4.86111,2456.1,2455.6,4.21962422]
[1730829426883,0.7895,2456.1,2455.7,4.0721]
[1730829427087,0.7895,2456.1,2455.8,0.06563122]
[1730829427326,0.7895,2456.1,2455.7,4.0721]
[1730829427541,0.7895,2456.1,2455.8,0.06567356]
[1730829427918,0.7895,2456.1,2455.7,4.0721]
[1730829428087,0.7895,2456.1,2455.8,0.06567356]
[1730829428293,0.7895,2456.1,2455.6,4.07228]
[1730829428493,0.7895,2456.1,2455.7,0.0658112]
[1730829429588,4.86102,2456.1,2455.7,0.0658112]
[1730829430395,0.7895,2456.1,2455.7,4.1379312]
[1730829430702,0.7895,2456.1,2455.8,8.14387]
[1730829430906,0.7895,2456.1,2455.9,0.06346461]
[1730829431630,0.7895,2456.1,2455.9,4.13528461]
[1730829431793,1.67935097,2456.2,2455.9,4.13528461]
[1730829431996,2.98675097,2456.3,2455.9,0.06346461]
[1730829432329,7.05794097,2456.3,2455.9,0.06346461]
[1730829432530,8.38183144,2456.3,2455.9,0.06346461]
[1730829432741,1.67935097,2456.2,2455.9,0.06346461]
[1730829432938,8.38183144,2456.3,2455.9,0.06346461]
[1730829433297,5.75069097,2456.2,2455.9,0.06346461]
[1730829433636,4.07154,2456.1,2455.6,8.14444]
[1730829433939,5.75069097,2456.2,2455.6,8.14444]
[1730829434232,5.75069097,2456.2,2455.7,4.13586987]
[1730829434638,7.20698649,2456.2,2455.7,4.13586987]
[1730829434793,1.67935097,2456.2,2455.8,8.14392]
[1730829434991,7.05796097,2456.3,2455.8,4.07196]
[1730829435220,7.05796097,2456.3,2455.9,0.06346461]
[1730829436417,2.98675097,2456.3,2455.9,4.13528461]
[1730829437451,2.22935097,2456.3,2456.0,4.07164]
[1730829437731,1.67935097,2456.4,2456.2,4.07132]
[1730829437891,1.67935097,2456.5,2456.3,0.06291422]
[1730829438097,0.8057,2456.6,2456.3,0.06291422]
[1730829438098,2.48505097,2456.6,2456.3,4.13402422]
[1730829438292,1.67935097,2456.5,2456.3,4.13402422]
[1730829438497,1.67935097,2456.6,2456.3,4.13402422]
[1730829438691,1.67935097,2456.6,2456.3,4.92912422]
[1730829439395,1.67935097,2456.6,2456.3,0.06291422]
[1730829440812,5.75004097,2456.6,2456.3,0.06291422]
[1730829441009,5.75004097,2456.6,2456.1,4.86655]
[1730829441213,5.75004097,2456.6,2456.4,0.06277665]
[1730829441421,7.02364573,2456.6,2456.1,4.86655]
[1730829441625,0.7928,2456.4,2456.0,4.07155]
[1730829442134,0.7928,2456.4,2456.1,4.07143]
[1730829442332,0.7928,2456.4,2456.0,4.07155]
[1730829442551,0.7928,2456.4,2456.0,8.14312]
[1730829444350,0.7928,2456.4,2456.0,4.07155]
[1730829447177,4.07118,2456.3,2455.8,4.07189]
[1730829447333,4.7804781,2456.3,2455.8,4.07189]
[1730829448058,0.7092981,2456.3,2455.8,8.14377]
[1730829448265,4.86394,2456.4,2455.9,4.07177]
[1730829448829,8.93504,2456.4,2455.8,8.14378]
[1730829449273,0.7928,2456.4,2455.9,4.07171]
[1730829449491,4.86383,2456.4,2455.9,4.07171]
[1730829451947,0.7928,2456.4,2455.7,0.7624]
[1730829452279,0.7928,2456.4,2456.0,4.07158]
[1730829454050,0.7928,2456.4,2456.1,0.06303128]
[1730829455078,6.1911677,2456.4,2456.1,0.06303128]
[1730829455279,7.87051867,2456.4,2456.1,0.06303128]
[1730829455478,7.87051867,2456.4,2455.9,4.07173]
[1730829455479,6.1911677,2456.4,2455.9,4.07173]
[1730829455792,7.87051867,2456.4,2455.9,4.07173]
[1730829455966,7.87051867,2456.4,2456.0,4.13472042]
[1730829455967,2.1200777,2456.4,2456.0,4.13472042]
[1730829457282,0.7928,2456.4,2456.0,4.13472042]
[1730829457483,0.7928,2456.4,2456.1,4.07139]
[1730829457794,0.7928,2456.4,2456.2,0.06290522]
[1730829458179,4.86385,2456.4,2456.2,0.06290522]
[1730829458486,4.07116,2456.3,2455.8,4.07188]
[1730829458826,4.07116,2456.3,2455.8,8.14374]
[1730829458987,2.47215097,2456.4,2455.9,4.0717]
[1730829459368,6.54315097,2456.4,2455.9,4.0717]
[1730829459546,6.54315097,2456.4,2455.7,0.7624]
[1730829459547,0.55,2456.3,2455.7,0.7624]
[1730829459757,0.7593,2456.1,2455.7,4.07207]
[1730829460089,4.8308,2456.1,2455.6,4.07216]
[1730829460578,4.8308,2456.1,2455.6,8.14439]
[1730829460773,0.7593,2456.1,2455.6,8.14437]
[1730829461088,0.7593,2456.1,2455.7,4.07205]
[1730829462112,0.7593,2456.1,2455.6,4.07216]
[1730829462965,0.7593,2456.1,2455.6,8.14439]
[1730829463262,0.7593,2456.1,2455.6,8.14437]
[1730829463676,0.7593,2456.1,2455.6,4.07216]
[1730829463978,0.7593,2456.1,2455.6,4.15359771]
[1730829465065,4.83081,2456.1,2455.6,4.07216]
[1730829466687,4.83081,2456.1,2455.6,4.15359774]
[1730829467498,4.83081,2456.1,2455.4,4.07254]
[1730829467499,4.07185,2455.9,2455.4,4.07254]
[1730829468299,4.07176,2456.0,2455.5,0.0814414]
[1730829468508,0.7593,2456.1,2455.6,4.07221]
[1730829468722,4.83084,2456.1,2455.6,4.07221]
[1730829470097,0.7593,2456.1,2455.7,4.07214]
[1730829470298,0.7593,2456.1,2455.8,4.07198]
[1730829471018,4.83079,2456.1,2455.6,4.07221]
[1730829471220,4.83079,2456.1,2455.9,0.06353313]
[1730829471426,4.83079,2456.1,2455.6,4.07221]
[1730829471586,5.38079,2456.1,2456.0,0.06339551]
[1730829471903,6.70437888,2456.1,2455.6,4.07221]
[1730829472225,5.38079,2456.1,2455.6,4.07221]
[1730829472384,5.38079,2456.1,2455.7,0.06380839]
[1730829473104,1.3093,2456.1,2455.7,4.13595839]
[1730829473511,1.3093,2456.1,2455.7,4.95225839]
[1730829474593,0.7593,2456.1,2455.9,4.07179]
[1730829474994,1.67935097,2456.3,2456.0,4.13495551]
[1730829475922,1.67935097,2456.3,2456.0,0.06339551]
[1730829477002,6.93591065,2456.4,2456.0,0.06339551]
[1730829477003,6.50964097,2456.4,2456.0,0.06339551]
[1730829477200,0.55,2456.3,2456.0,0.06339551]
[1730829477626,2.22935097,2456.3,2456.0,0.06339551]
[1730829478019,1.67935097,2456.3,2456.0,0.06339551]
[1730829478220,2.43855097,2456.4,2456.0,0.14482497]
[1730829478420,6.50956097,2456.4,2456.0,0.06339551]
[1730829478731,0.7592,2456.4,2456.0,0.06339551]
[1730829479236,2.43855097,2456.4,2456.0,0.06339551]
[1730829479533,0.7592,2456.4,2456.0,4.13503551]
[1730829480431,4.07119,2456.3,2456.0,0.06339551]
[1730829480636,0.7707,2456.2,2455.8,4.07196]
[1730829480927,0.7707,2456.2,2456.1,0.06319644]
[1730829481151,0.7707,2456.2,2455.8,4.07196]
[1730829481357,0.7707,2456.2,2456.1,0.06319644]
[1730829481833,0.7707,2456.2,2455.8,4.07196]
[1730829482018,0.7707,2456.2,2456.1,0.06319644]
[1730829482345,0.7707,2456.2,2455.8,4.07196]
[1730829482541,0.7707,2456.2,2456.1,0.06319644]
[1730829482739,0.7707,2456.2,2455.8,4.07196]
[1730829482945,0.7707,2456.2,2456.1,0.06319644]
[1730829483106,5.4941441,2456.2,2455.7,4.8884]
[1730829483435,0.7707,2456.2,2455.8,4.07199]
[1730829483749,0.7707,2456.2,2455.8,4.13559929]
[1730829484250,0.7707,2456.2,2455.8,0.06360929]
[1730829484415,0.7707,2456.2,2455.7,8.96046]
[1730829484606,0.7707,2456.2,2455.9,0.06347166]
[1730829484811,0.7707,2456.2,2455.8,4.07194]